Cogmind - Beta 16 @@@ ROGUE MODE // 2025.10.21 @ 04:18:53 Player: cptwinky Result: Escaped! Performance ------------- Evolutions (9) 4500 Regions Visited (23) 4600 Robots Destroyed (202) 1010 Value Destroyed (10394) 10394 Prototype IDs (79) 1580 Alien Tech Used (3) 600 Bonus (12520) 12520 TOTAL SCORE: 35204 Bonus ------- High Alert Combat Kills 554 Follower Combat Kills 3850 Network Hubs Disabled 200 Registered with UFD 300 Met Optimus in HQ 500 Met Data Miner 300 Met Zhirov 300 Built Enhanced Grunts 300 A7 Reached Mainframe 300 Met R17 at Cetus 500 Read Decrypted Archives 300 Hacked Protovariant 500 Met R17 at Research 2000 Scanned by Researcher 500 Win 3000 Friendly Fire -884 Cogmind --------- Core Integrity 1337/1600 Matter 258/300 Energy 484/500 System Corruption 0% Temperature Cool (22) Movement Treading (255) Ox1 Location To Epsilon Eridani Parts ------- > --- POWER (3) -------- Light Antimatter Reactor Particle Reactor Light Quantum Reactor > --- PROPULSION (6) --- Medium Treads Medium Treads Heavy Siege Treads Heavy Siege Treads > --- UTILITY (14) ----- Advanced Cooling System 2N-1CE's Frost Array Vampiric Humpback Advanced Signal Interpreter Long-range Terrain Scanner Advanced Terrain Scan Processor Advanced Targeting Computer Advanced Target Analyzer Core Analyzer Centrium Medium Armor Plating Centrium Medium Armor Plating (fused) Centrium Medium Armor Plating Improved Hacking Suite > --- WEAPON (3) ------- Quantum Rifle Quantum Rifle Neutron Cannon > --- INVENTORY (35) --- Heavy Siege Treads Advanced Energy Well (500) Experimental Energy Well (600) Improved Matter Compressor (0) Long-range Sensor Array Precision Matter Filter Improved Powered Armor Graphene Brace Long-range Tractor Beam Transdimensional Reconstructor Subatomic Replicator Personal Teleporter v0.10 (Charged) Warp Gun Compact HERF Cannon Potential Cannon Railgun Advanced KE Penetrator Helical Railgun Helical Railgun Heavy Gauss Cannon Fusion Bomb Launcher Z-bomb Delivery System Makeshift Laser Shovel CPS Tube (2) Makeshift Hammer Sigix Broadsword Fire Trap Fire Trap Peak State ------------ > --- POWER ------------ Light Antimatter Reactor Particle Reactor Light Quantum Reactor > --- PROPULSION ------- Medium Treads Medium Treads Heavy Siege Treads Heavy Siege Treads > --- UTILITY ---------- Advanced Cooling System 2N-1CE's Frost Array Vampiric Humpback Advanced Signal Interpreter Long-range Terrain Scanner Advanced Terrain Scan Processor Advanced Targeting Computer Advanced Target Analyzer Core Analyzer Centrium Medium Armor Plating Centrium Medium Armor Plating Centrium Medium Armor Plating Improved Hacking Suite > --- WEAPON ----------- Quantum Rifle Quantum Rifle Neutron Cannon > --- INVENTORY -------- Heavy Siege Treads Advanced Energy Well Experimental Energy Well Improved Matter Compressor Long-range Sensor Array Precision Matter Filter Improved Powered Armor Graphene Brace Long-range Tractor Beam Transdimensional Reconstructor Subatomic Replicator Personal Teleporter v0.10 Warp Gun Compact HERF Cannon Potential Cannon Railgun Advanced KE Penetrator Helical Railgun Helical Railgun Heavy Gauss Cannon Fusion Bomb Launcher Z-bomb Delivery System Makeshift Laser Shovel CPS Tube Makeshift Hammer Sigix Broadsword Fire Trap Fire Trap [Rating: 191] Favorites ----------- Power Neutrino Core Engine Light Ion Engine Power Core Neutrino Core Reactor Light Antimatter Reactor Propulsion Overtuned Huge Scrapsphere Treads Light Treads Leg Armored Leg Wheel Overtuned Huge Scrapsphere Utility Advanced Signal Interpreter Device Scrap Suit Storage Vampiric Humpback Processor Advanced Signal Interpreter Hackware Advanced Hacking Suite Protection Improved Medium Armor Plating Weapon Junk Cannon Energy Gun Medium Laser Energy Cannon Phase Cannon Ballistic Gun Subdweller Machine Gun Ballistic Cannon Enhanced Gauss Cannon Launcher Rocket Launcher Special Weapon Junk Cannon Impact Weapon Makeshift Hammer Special Melee Weapon Improved Datajack Build | -11 -10 -10 -9 -6 -6 -6 -6 -5 -5 -5 -5 -5 -4 -4 -4 -4 -4 -4 -3 -3 -2 -2 -1 ------- Run | Yrd Mat Sub Scr Fac Low Low Dat Pro Fac Upp Upp Zhi Pro Fac Ext Cet Arc Hub Res Tes Res Qua Acc Slots Evolved 18 | . . . . 8 . . . . 2 . . . . 2 . . . . 2 . 2 . 2 Power 2 | . . . . 1 . . . . . . . . . 1 . . . . . . . . . Propulsion 4 | . . . . 2 . . . . . . . . . . . . . . . . . . 2 Utility 12 | . . . . 5 . . . . 2 . . . . 1 . . . . 2 . 2 . . Weapon . | . . . . . . . . . . . . . . . . . . . . . . . . Parts Attached 163 | 6 3 17 10 21 10 7 2 3 7 . 3 3 1 8 13 2 1 3 7 17 5 4 10 Power 32 | 1 1 2 1 5 1 1 . 1 1 . . 1 . 3 4 . . 1 . 4 . 3 2 Engine 5 | 1 1 1 1 1 . . . . . . . . . . . . . . . . . . . Core 16 | . . 1 . 4 1 1 . 1 1 . . . . 3 3 . . . . 1 . . . Reactor 11 | . . . . . . . . . . . . 1 . . 1 . . 1 . 3 . 3 2 Propulsion 22 | 2 . 4 3 6 . 2 . . . . . 1 . . . . . . . . . . 4 Treads 8 | 2 . 1 . 1 . . . . . . . . . . . . . . . . . . 4 Leg 10 | . . 2 2 5 . . . . . . . 1 . . . . . . . . . . . Wheel 4 | . . 1 1 . . 2 . . . . . . . . . . . . . . . . . Hover . | . . . . . . . . . . . . . . . . . . . . . . . . Flight . | . . . . . . . . . . . . . . . . . . . . . . . . Utility 68 | 1 2 2 3 10 6 3 . 2 6 . 2 1 1 2 5 2 . . 5 7 5 1 2 Device 29 | . 1 1 . 3 4 2 . 1 3 . 2 . . 1 3 . . . 4 1 2 1 . Storage 7 | 1 1 . 2 . . 1 . . . . . . . . . . . . . 2 . . . Processor 13 | . . . . 5 1 . . 1 1 . . . . . . . . . . 3 1 . 1 Hackware 4 | . . . . . . . . . 1 . . . . . . . . . 1 . 1 . 1 Protection 15 | . . 1 1 2 1 . . . 1 . . 1 1 1 2 2 . . . 1 1 . . Artifact . | . . . . . . . . . . . . . . . . . . . . . . . . Weapon 41 | 2 . 9 3 . 3 1 2 . . . 1 . . 3 4 . 1 2 2 6 . . 2 Energy Gun 7 | 1 . 3 . . . . . . . . . . . . . . . . . 1 . . 2 Energy Cannon 6 | . . 1 . . 1 . . . . . . . . 1 1 . 1 . . 1 . . . Ballistic Gun 14 | 1 . 4 . . . . . . . . . . . . 3 . . 1 2 3 . . . Ballistic Cannon 2 | . . . . . . . 1 . . . . . . 1 . . . . . . . . . Launcher 2 | . . . 1 . . . . . . . . . . . . . . . . 1 . . . Special Weapon 7 | . . 1 2 . . 1 . . . . 1 . . 1 . . . 1 . . . . . Impact Weapon 2 | . . . . . 2 . . . . . . . . . . . . . . . . . . Slashing Weapon . | . . . . . . . . . . . . . . . . . . . . . . . . Piercing Weapon . | . . . . . . . . . . . . . . . . . . . . . . . . Special Melee Weapon 1 | . . . . . . . 1 . . . . . . . . . . . . . . . . Unidentified Prototypes 21 | . . . 1 1 . 2 . . 1 . 1 4 . . . . . . 3 7 . . 1 Parts Lost 27 | . . 8 1 . . . . . . . . . . 5 1 1 . 2 1 3 3 . 2 Power 8 | . . 1 1 . . . . . . . . . . 2 . . . 1 . 1 1 . 1 Propulsion 3 | . . 3 . . . . . . . . . . . . . . . . . . . . . Utility 8 | . . . . . . . . . . . . . . 2 . 1 . . 1 1 2 . 1 Weapon 8 | . . 4 . . . . . . . . . . . 1 1 . . 1 . 1 . . . Highest Loss Streak 4 | . . 4 1 . . . . . . . . . . 2 1 1 . 2 1 2 1 . 2 To Critical Strikes . | . . . . . . . . . . . . . . . . . . . . . . . . Average Backups 19 | 3 7 9 13 15 16 19 27 27 26 27 27 27 26 25 25 24 25 25 27 29 29 30 28 Power 1 | . 1 1 1 1 1 1 2 2 2 2 2 2 2 . 1 2 3 2 3 3 3 2 . Propulsion . | 2 2 1 2 . . . . . . . . . . . . . . . . . . . 1 Utility 9 | . 2 3 4 6 7 11 18 18 17 18 17 17 15 13 13 12 12 12 11 11 9 9 8 Weapon 4 | . 1 2 4 2 3 2 4 4 4 4 4 4 4 5 4 4 4 4 6 8 10 10 11 Tool/Special . | . . . . . . . . . . . . . . . . . . . . . . . . Unused Backups 104 | . 5 2 26 8 2 8 . 2 2 . 1 2 7 3 3 9 . 7 . 3 . 1 13 Power 11 | . . 1 2 1 . 1 . . 1 . . . 1 . 3 . . . . 1 . . . Propulsion 17 | . 3 . 8 1 1 1 . . . . . . 1 . . . . 1 . . . . 1 Utility 49 | . 1 1 10 3 1 5 . 2 1 . 1 2 3 2 . 7 . 5 . 1 . . 4 Weapon 24 | . 1 . 6 3 . 1 . . . . . . 2 1 . 2 . 1 . 1 . 1 5 Tool/Special 3 | . . . . . . . . . . . . . . . . . . . . . . . 3 Average Slot Usage (%) 84 | . 99 97 91 84 93 84 68 67 71 72 71 66 72 73 78 74 75 75 80 80 81 82 83 Engine 1 | . 14 11 . 3 . . . . . . . . . . . . . . . . . . . Core 10 | . . 1 13 9 13 12 12 11 11 11 11 10 11 13 12 15 15 14 9 5 4 2 . Reactor 1 | . . . . . . . . . . . . . . . 2 . . . 4 7 7 8 10 Treads 1 | . 28 6 . 1 . . . . . . . . . . . . . . . . . . 5 Leg 9 | . . 19 13 22 26 17 . . . . . . . . . . . . . . . . . Wheel 6 | . . . 7 . . 3 12 12 11 11 11 10 11 10 10 10 10 10 9 9 8 8 6 Device 11 | . 13 6 . 5 11 10 6 10 15 16 15 12 16 19 20 17 15 18 21 20 21 19 12 Storage 7 | . 14 14 14 6 6 6 6 6 5 5 5 5 5 5 5 5 5 5 4 4 4 4 3 Processor 9 | . . . . 21 19 15 12 12 11 11 11 11 11 10 10 10 10 10 9 10 14 16 17 Protection 7 | . . 7 13 6 6 6 6 1 5 5 5 5 5 5 5 7 10 6 4 6 7 8 10 Energy Gun 1 | . 14 12 . . . . . . . . . . . . . . . . . . . . 3 Energy Cannon 2 | . . 2 4 . 1 3 . . . . . . . 3 2 5 6 5 3 . 1 4 3 Ballistic Gun 7 | . 14 12 22 . . . . . . . . . . . 10 1 . 1 9 12 10 8 3 Special Weapon 2 | . . . . 6 4 6 6 6 5 5 5 5 5 2 . 3 3 3 . . . . . Peak Build Rating 191 | 6 10 21 34 82 87 92 93 94 109 108 108 109 110 128 126 131 132 131 149 163 174 178 191 Average Rating 81 | 4 8 16 20 70 83 88 90 93 105 105 103 100 106 122 122 125 131 128 145 150 166 170 184 On Entrance 96 | . 6 10 19 34 82 84 92 93 93 108 108 101 109 107 113 125 131 131 130 149 158 155 178 Avg Prop Armor Cover (%) 6 | . . . . 6 . 7 . . . . . . . . . . . . . . 3 . 7 Naked Turns . | . . . . . . . . . . . . . . . . . . . . . . . . Heaviest Build 298 | 12 20 31 64 77 102 250 251 258 274 274 275 273 273 291 286 287 292 287 286 285 297 297 298 Greatest Support 196 | 40 40 40 40 96 92 92 40 40 40 40 40 40 40 40 40 40 40 40 40 40 40 40 196 Greatest Overweight (x) 14 | . . 1 2 2 1 6 6 6 6 6 6 12 6 7 7 7 7 7 7 7 14 7 14 Average Overweight (x) 3 | . . . 1 . . 1 6 6 6 6 6 6 6 6 6 6 7 6 6 6 6 6 8 Largest Inventory Capacity 35 | 8 10 10 20 20 20 35 35 35 35 35 35 35 35 35 35 35 35 35 35 35 35 35 35 Average Capacity 24 | 7 8 10 16 20 20 24 35 35 35 35 35 35 35 35 35 35 35 35 35 35 35 35 35 Most Carried 35 | 7 8 10 20 20 20 35 35 35 35 35 35 35 35 35 35 35 30 32 35 35 35 35 35 Average Carried 23 | 3 7 9 13 19 19 22 35 35 34 35 34 34 34 34 34 29 30 29 31 34 34 34 34 Final Capacity 35 | 8 10 10 20 20 20 35 35 35 35 35 35 35 35 35 35 35 35 35 35 35 35 35 35 Final Carried 35 | 7 8 9 17 20 20 35 35 35 35 35 35 34 35 32 35 30 30 31 35 35 35 35 31 Scrap Suit Usage (%) 2 | . . . . . . 1 . 71 . . . . . 1 . . . . 1 . . . . Class Distribution -------------------- 43% | Mutant 18% | Hauler-Scrapper 8% | Scavenger-Mutant 8% | Scavenger-Scrapper 6% | Commander-Scrapper 5% | Scavenger-Skirmisher 5% | Scavenger-Gunner Dominant Class ---------------- Mutant | -10/Materials Scavenger-Mutant | -10/Subcaves Mutant | -9/Scraptown Mutant | -6/Factory Mutant | -6/Lower Caves Mutant | -6/Lower Caves Hauler-Scrapper | -6/Data Miner Hauler-Scrapper | -5/Proximity Caves Hauler-Scrapper | -5/Factory Hauler-Scrapper | -5/Upper Caves Hauler-Scrapper | -5/Upper Caves Hauler-Scrapper | -5/Zhirov Hauler-Scrapper | -4/Proximity Caves Scavenger-Scrapper | -4/Factory Commander-Scrapper | -4/Extension Commander-Scrapper | -4/Cetus Scavenger-Scrapper | -4/Archives Scavenger-Scrapper | -4/Hub_04(d) Scavenger-Gunner | -3/Research Scavenger-Gunner | -3/Testing Scavenger-Skirmisher | -2/Research Scavenger-Skirmisher | -2/Quarantine Scavenger-Skirmisher | -1/Access Resources | -11 -10 -10 -9 -6 -6 -6 -6 -5 -5 -5 -5 -5 -4 -4 -4 -4 -4 -4 -3 -3 -2 -2 -1 ----------- Run | Yrd Mat Sub Scr Fac Low Low Dat Pro Fac Upp Upp Zhi Pro Fac Ext Cet Arc Hub Res Tes Res Qua Acc Matter Collected 8488 | 263 123 458 802 170 1316 210 . 143 136 45 291 332 168 454 1055 176 . 111 119 1062 620 89 345 Remotely . | . . . . . . . . . . . . . . . . . . . . . . . . Salvage Created 11189 | 20 303 355 136 1151 901 523 . 154 367 58 484 82 362 616 1754 268 . 529 96 1854 476 133 567 Parts 441 | 3 18 19 3 15 29 30 . 2 9 2 22 . 11 28 78 9 . 24 3 71 27 12 26 Haulers Intercepted 8 | . 1 . . 5 . 1 . . . . . . . . . . . . . . . . 1 Recyclers Shooed 2 | . . . . 1 . . . . . . . . . . 1 . . . . . . . . Parts Field Recycled 31 | . . . . . 31 . . . . . . . . . . . . . . . . . . Retrieved Matter 318 | . . . . . 318 . . . . . . . . . . . . . . . . . . Parts Self-Destructed 94 | . . 2 . . 22 17 . 13 . 6 21 . 13 . . . . . . . . . . Prevented 16 | . . . . . 2 3 . 2 . 2 3 . 4 . . . . . . . . . . Parts Restored . | . . . . . . . . . . . . . . . . . . . . . . . . Kills | -11 -10 -10 -9 -6 -6 -6 -6 -5 -5 -5 -5 -5 -4 -4 -4 -4 -4 -4 -3 -3 -2 -2 -1 ------- Run | Yrd Mat Sub Scr Fac Low Low Dat Pro Fac Upp Upp Zhi Pro Fac Ext Cet Arc Hub Res Tes Res Qua Acc Combat Hostiles Destroyed 158 | . 6 6 2 17 18 1 . 3 7 1 15 . 5 6 24 3 . 7 1 20 8 2 6 Guns 62 | . 6 6 . . . . . . . . . . . . 17 . . 2 . 20 6 2 3 Cannons 47 | . . . 1 9 5 1 . 2 4 1 5 . 3 4 4 . . 4 1 . . . 3 AOE 21 | . . . . 1 9 . . . 1 . 8 . . . . . . . . . 2 . . Classes Destroyed 26 | 1 2 3 1 6 4 4 . . . . . . . 1 1 . . 1 . 1 . 1 . Worker 5 | . . . . . . . . . . . . . . . . . . . . 5 . . . Builder 5 | . . . . . . . . . . . . . . . 1 . . . . 1 3 . . Tunneler 3 | 1 . . . . . . . . . . . . . 2 . . . . . . . . . Hauler 8 | . 1 . . 5 . 1 . . . . . . . . . . . . . . . . 1 Recycler 3 | . . . . . . . . . . . . . . 1 2 . . . . . . . . Minesweeper 1 | . . . . . . 1 . . . . . . . . . . . . . . . . . Mechanic 1 | . . . . . . . . . . . . . . 1 . . . . . . . . . Operator 1 | . . . . . . . . . . . . . . . . . . . . . . 1 . Watcher 5 | . . . . 1 . . . . . . . . . . . 1 . 1 . 2 . . . Swarmer 23 | . . . . . 6 . . . . . 8 . . . 8 . . 1 . . . . . Grunt 56 | . 6 . . 10 9 . . 2 6 . 2 . 1 1 2 . . 1 . 14 . . 2 Brawler 1 | . . . . . . . . . . . . . . . . . . 1 . . . . . Duelist 2 | . . . . . . . . . . . 2 . . . . . . . . . . . . Researcher 6 | . . . . . . 1 . . . . . . . . . . . . . 5 . . . Sentry 21 | . . . . 2 . . . . 1 . 1 . . 1 10 . . 2 1 . 1 . 2 Specialist 1 | . . . . 1 . . . . . . . . . . . . . . . . . . . Hunter 14 | . . . . 1 . . . 1 . 1 . . 3 . 2 . . 2 . 2 2 . . Programmer 22 | . . . . 2 . . . . . . 2 . . 3 2 . . . . 4 5 2 2 Behemoth 4 | . . . . 1 . . . . . . . . 1 2 . . . . . . . . . Cetus Guard 3 | . . . . . . . . . . . . . . . . 3 . . . . . . . Cobbler 1 | . . 1 . . . . . . . . . . . . . . . . . . . . . Subdweller 6 | . . 6 . . . . . . . . . . . . . . . . . . . . . Scrapper 2 | . . . 2 . . . . . . . . . . . . . . . . . . . . Scrapoid 2 | . . . . . . 2 . . . . . . . . . . . . . . . . . Zionite 2 | . . 2 . . . . . . . . . . . . . . . . . . . . . Packrat 2 | . . . . . 1 1 . . . . . . . . . . . . . . . . . Thief 1 | . . . . . . 1 . . . . . . . . . . . . . . . . . Thug 1 | . . . . . 1 . . . . . . . . . . . . . . . . . . Butcher 1 | . . . . . 1 . . . . . . . . . . . . . . . . . . Mutant 1 | . . . . . 1 . . . . . . . . . . . . . . . . . . Commander 1 | . . . . . . 1 . . . . . . . . . . . . . . . . . Best Kill Streak 9 | 1 2 2 2 5 9 1 . 2 4 1 8 . 4 2 5 2 . 3 1 5 4 2 3 Combat Bots Only 9 | . 2 2 2 5 9 1 . 2 4 1 8 . 4 2 5 2 . 3 1 5 2 2 3 Max Kills in Single Turn 4 | 1 1 1 1 1 4 1 . 1 1 1 3 . 1 1 2 1 . 1 1 2 2 1 1 Gunslinging 1 | . . . . . . . . . . . . . . . 1 . . . . 1 . . . Exploded 4 | . . . . 1 4 . . . 1 . 3 . . . . . . . . . 1 . . Melee . | . . . . . . . . . . . . . . . . . . . . . . . . Uniques/NPCs Destroyed . | . . . . . . . . . . . . . . . . . . . . . . . . Combat | -11 -10 -10 -9 -6 -6 -6 -6 -5 -5 -5 -5 -5 -4 -4 -4 -4 -4 -4 -3 -3 -2 -2 -1 -------- Run | Yrd Mat Sub Scr Fac Low Low Dat Pro Fac Upp Upp Zhi Pro Fac Ext Cet Arc Hub Res Tes Res Qua Acc Hostile Shots Fired 883 | . 35 51 23 106 36 . . 3 29 5 23 . 20 112 71 20 . 42 10 164 73 2 58 Missed 330 | . 13 12 10 52 15 . . . 13 3 9 . 9 42 21 6 . 14 5 71 17 . 18 Hits 553 | . 22 39 13 54 21 . . 3 16 2 14 . 11 70 50 14 . 28 5 93 56 2 40 Projectile 553 | . 22 39 13 54 21 . . 3 16 2 14 . 11 70 50 14 . 28 5 93 56 2 40 Critical Strikes 30 | . . . . . 4 . . 1 . 1 . . 1 5 2 3 . 1 . 4 6 1 1 Part Disruptions 1 | . . . . . . . . . . . . . . . . . . . . . 1 . . Damage Taken 11475 | . 305 1021 233 759 411 . . 80 404 36 318 . 281 1990 886 296 . 744 102 1552 1093 48 916 Core 965 | . 81 108 31 96 35 . . . . . . . 25 109 51 . . 88 22 90 152 . 77 Absorbed by Shields 517 | . . . . . 66 . . . 108 . . . . . 255 88 . . . . . . . Ignored by Resistances 781 | . . . . 101 . . . . . . . . 9 221 32 . . . . 162 256 . . Core Remaining (%) 73 | 100 . . 12 . . . . 83 . . . . 90 . . . . 53 . 85 . 80 83 Volleys Fired 778 | 1 28 92 25 67 29 43 . 9 17 4 41 10 12 65 112 25 16 31 10 70 29 17 25 Largest 3 | 2 2 2 2 1 1 1 . 2 2 1 2 1 2 2 3 1 1 3 3 3 3 3 3 Hottest 278 | 70 70 100 110 . 85 85 . 47 47 47 85 . 47 165 149 110 90 156 156 108 111 166 278 Shots Fired 1144 | 2 56 118 28 67 29 43 . 18 18 4 44 10 18 79 181 25 16 36 16 192 65 24 55 Gun 539 | 2 56 100 5 . . . . . . . . . . . 84 . . 5 6 190 54 7 30 Cannon 359 | . . 16 16 . 1 29 . 9 2 1 27 . 7 62 64 18 14 30 10 2 9 17 25 Launcher 17 | . . . 1 . 6 . . . 2 . 6 . . . . . . . . . 2 . . Special 229 | . . 2 6 67 22 14 . 9 14 3 11 10 11 17 33 7 2 1 . . . . . Kinetic 510 | 1 28 55 5 . . . . 9 2 1 4 . 7 38 84 . . 5 6 190 54 7 14 Thermal 314 | 1 28 63 16 . 1 29 . . . . 23 . . 10 41 . 14 9 10 2 9 17 41 Explosive 17 | . . . 1 . 6 . . . 2 . 6 . . . . . . . . . 2 . . Electromagnetic 76 | . . . . . . . . . . . . . . 14 23 18 . 21 . . . . . Impact 177 | . . . 5 67 22 12 . 9 14 3 11 10 11 13 . . . . . . . . . Robot Hit Streak 51 | 2 16 16 8 16 10 11 . 5 7 3 9 3 4 12 29 11 1 8 4 51 28 15 10 Robot Miss Streak 7 | . 2 2 4 1 1 3 . 2 3 1 1 2 2 1 7 1 1 2 2 3 1 . 1 Penetration Max 1 | . . . . . . . . . . . . . . . 1 . . . . 1 1 . . Secondary Targets 7 | . . . . . . . . . . . . . . . 3 . . . . 4 . . . Max Gunslinging Chain 2 | . . . . . . . . . . . . . . . 2 . . . . 1 . . . Shots Hit Robots 724 | 2 44 53 10 50 22 25 1 10 11 3 13 3 11 57 129 22 1 21 5 158 39 6 28 Core Hits 305 | 1 17 16 1 8 25 10 . 1 7 . 16 . 4 14 49 8 . 13 4 71 17 4 19 Critical Kills 16 | . . 1 . 2 1 1 . . . . . . . . 5 . . 1 . 3 1 . 1 Critical Parts Destroyed 39 | . . . 1 10 . . . 1 1 2 2 . . 3 1 . . . . 15 2 . 1 Critical Strikes 65 | . . 3 1 13 1 1 . 1 2 2 2 . . 7 6 2 . 1 . 18 3 . 2 Burn 2 | . . 2 . . . . . . . . . . . . . . . . . . . . . Meltdown 2 | . . . . . . 1 . . . . . . . . 1 . . . . . . . . Destroy 28 | . . 1 . . . . . . . . . . . . 5 . . 1 . 16 3 . 2 Blast 5 | . . . . . . . . . 1 . . . . 4 . . . . . . . . . Corrupt 2 | . . . . . . . . . . . . . . . . 2 . . . . . . . Smash 26 | . . . 1 13 1 . . 1 1 2 2 . . 3 . . . . . 2 . . . Melee Attacks 19 | . . . . . 9 1 1 . . . . . . . 1 . . . . 7 . . . Impact 18 | . . . . . 9 1 . . . . . . . . 1 . . . . 7 . . . Slashing . | . . . . . . . . . . . . . . . . . . . . . . . . Piercing . | . . . . . . . . . . . . . . . . . . . . . . . . Sneak Attacks 6 | . . . . . 1 1 1 . . . . . . . . . . . . 3 . . . Combat Hostiles . | . . . . . . . . . . . . . . . . . . . . . . . . Follow-up Attacks . | . . . . . . . . . . . . . . . . . . . . . . . . Damage Inflicted 29045 | 22 557 896 386 4032 2266 808 . 724 1035 175 1751 331 793 2516 3117 563 . 660 145 4729 2295 274 970 Guns 9795 | 22 557 896 100 . . . . . . . . . . . 1702 . . 80 67 4352 1375 103 541 Cannons 5784 | . . . 52 . . 631 . 101 36 . 58 . 104 1566 1415 563 . 580 78 . . 171 429 Explosions 2854 | . . . 2 121 796 . . . 261 . 589 . . 165 . . . . . . 920 . . Melee 845 | . . . . . 391 77 . . . . . . . . . . . . . 377 . . . Ramming 40 | . . . . 40 . . . . . . . . . . . . . . . . . . . Kinetic 10389 | 10 275 511 100 . . . . 101 36 . 58 . 104 1211 1702 . . 80 67 4352 1375 103 304 Thermal 3224 | 12 282 385 52 . . 631 . . . . . . . . 876 . . 71 78 . . 171 666 Explosive 2733 | . . . 2 . 796 . . . 261 . 589 . . 165 . . . . . . 920 . . Electromagnetic 2087 | . . . . 121 . . . . . . . . . 355 539 563 . 509 . . . . . Impact 10572 | . . . 232 3871 1470 177 . 623 738 175 1104 331 689 785 . . . . . 377 . . . Slashing . | . . . . . . . . . . . . . . . . . . . . . . . . Piercing . | . . . . . . . . . . . . . . . . . . . . . . . . Highest Corruption 5 | . . 1 1 . . . . . . . 1 . . 4 4 . . 5 . 3 2 2 . Average Corruption 2 | . . 1 1 . . . . . . . 1 . . 1 3 . . 5 . 2 1 2 . Corruption Purged 5 | . . . . . . . . . . . 1 . . . 4 . . . . . . . . Corruption Blocked 2 | . . . . 2 . . . . . . . . . . . . . . . . . . . Effects 77 | . . 2 1 . . . . . . . 7 . . 7 34 . . 4 . 12 3 7 . Message Errors 12 | . . . . . . . . . . . 2 . . 2 5 . . . . 1 1 1 . Matter Fused 15 | . . 1 . . . . . . . . 1 . . 1 9 . . . . 1 1 1 . Heat Flow Errors 13 | . . . . . . . . . . . 1 . . . 7 . . . . 4 . 1 . Energy Discharges 8 | . . . . . . . . . . . . . . 2 1 . . 2 . 2 . 1 . Parts Rejected 1 | . . . . . . . . . . . . . . . 1 . . . . . . . . Parts Fused 2 | . . . . . . . . . . . . . . 1 . . . . . . . 1 . Data Loss (minor) 10 | . . 1 . . . . . . . . 2 . . 1 2 . . 1 . 2 1 . . Data Loss (major) 7 | . . . 1 . . . . . . . . . . . 4 . . . . 1 . 1 . Misfires 2 | . . . . . . . . . . . . . . . 1 . . . . . . 1 . Alerts 5 | . . . . . . . . . . . 1 . . . 2 . . 1 . 1 . . . Weapon Failures 2 | . . . . . . . . . . . . . . . 2 . . . . . . . . Overload Shots . | . . . . . . . . . . . . . . . . . . . . . . . . Overflow Damage 3371 | . . . 63 1413 331 87 . 167 211 142 330 20 122 238 3 . . 4 . 230 . 10 . Projectiles 2936 | . . . 63 1413 217 26 . 167 211 142 325 20 122 213 3 . . 4 . . . 10 . Explosions 30 | . . . . . . . . . . . 5 . . 25 . . . . . . . . . Melee 405 | . . . . . 114 61 . . . . . . . . . . . . . 230 . . . Knockbacks 45 | . . . 1 15 6 . . 4 1 2 3 . 3 6 . . . . . 4 . . . Impact 37 | . . . 1 14 6 . . 3 1 2 3 . 3 1 . . . . . 3 . . . Kinetic 6 | . . . . . . . . 1 . . . . . 5 . . . . . . . . . Secondary 2 | . . . . 1 . . . . . . . . . . . . . . . 1 . . . Self-Inflicted Damage 328 | . . . . 16 67 . . . . . 41 . . 204 . . . . . . . . . Shots 6 | . . . . 1 2 . . . . . 1 . . 2 . . . . . . . . . Rammed 1 | . 1 . . . . . . . . . . . . . . . . . . . . . . Targets Rammed 5 | . 1 . . 4 . . . . . . . . . . . . . . . . . . . Kicked 4 | . . . . 4 . . . . . . . . . . . . . . . . . . . Crushed . | . . . . . . . . . . . . . . . . . . . . . . . . Highest Temperature 343 | 9 90 60 343 . 48 276 . 24 . 8 270 . . . 212 . . . . 223 . 88 4 Average Temperature 75 | 6 49 26 100 . 24 73 . 13 . 6 107 . . . 58 . . . . 114 . 53 4 Received Heat Transfer 1855 | . 168 96 114 219 171 . . 45 65 . . . 9 184 128 . . 66 9 338 126 . 117 Effects 2 | . . . 1 . . 1 . . . . . . . . . . . . . . . . . Energy Bleed 1 | . . . . . . 1 . . . . . . . . . . . . . . . . . Matter Decay 1 | . . . 1 . . . . . . . . . . . . . . . . . . . . Siege Activations . | . . . . . . . . . . . . . . . . . . . . . . . . Martial Activations . | . . . . . . . . . . . . . . . . . . . . . . . . Shielding Activations . | . . . . . . . . . . . . . . . . . . . . . . . . Robots Disrupted 7 | . . . . . . . . . . . . . . 2 1 2 . 1 . . . . 1 Combat Hostiles 6 | . . . . . . . . . . . . . . 2 1 1 . 1 . . . . 1 Robots Corrupted 37 | . . . 1 11 5 1 . 1 2 . 2 1 2 3 2 3 . 1 . 2 . . . Combat Hostiles 29 | . . . 1 7 5 . . 1 2 . 2 1 2 2 2 3 . 1 . . . . . Parts Fried 35 | . . . 1 9 2 . . 2 . 1 1 . 3 2 1 3 . 3 . 7 . . . Impact Corruptions 83 | . . . 1 34 10 1 . 4 6 2 8 3 3 5 . . . . . 6 . . . Robots Melted 2 | . . . . . . 1 . . . . . . . . 1 . . . . . . . . Combat Hostiles 1 | . . . . . . . . . . . . . . . 1 . . . . . . . . Parts Melted 16 | . 2 2 1 . . . . . . . . . . . 5 . . . . 1 . 2 3 Heat Transferred 3878 | 37 814 965 50 . . 680 . . . . . . . . 1036 . . . . . . . 296 Parts Sabotaged . | . . . . . . . . . . . . . . . . . . . . . . . . Parts Stolen . | . . . . . . . . . . . . . . . . . . . . . . . . Parts Stripped . | . . . . . . . . . . . . . . . . . . . . . . . . Power Chain Reactions . | . . . . . . . . . . . . . . . . . . . . . . . . Alert | -11 -10 -10 -9 -6 -6 -6 -6 -5 -5 -5 -5 -5 -4 -4 -4 -4 -4 -4 -3 -3 -2 -2 -1 ------- Run | Yrd Mat Sub Scr Fac Low Low Dat Pro Fac Upp Upp Zhi Pro Fac Ext Cet Arc Hub Res Tes Res Qua Acc Maximum Alert Level 3 | . . . . 3 . . . . 1 . . . . 2 3 2 1 3 2 2 1 . . Low Security (%) 41 | 100 100 . . 27 . . . . 58 . . . . 46 . . 76 24 . 53 36 100 100 Level 1 28 | . . . . 30 . . . . 41 . . . . 21 28 . 23 30 96 41 63 . . Level 2 23 | . . . . 19 . . . . . . . . . 32 60 100 . 20 3 4 . . . Level 3 6 | . . . . 22 . . . . . . . . . . 11 . . 24 . . . . . Level 4 . | . . . . . . . . . . . . . . . . . . . . . . . . Level 5 . | . . . . . . . . . . . . . . . . . . . . . . . . High Security . | . . . . . . . . . . . . . . . . . . . . . . . . Max Security . | . . . . . . . . . . . . . . . . . . . . . . . . Peak Influence 992 | 5 59 . . 893 . . . . 384 . . . . 588 992 668 266 788 402 408 289 155 85 Initial 540 | . . . . . . . . . . . . . . . 267 540 190 54 402 119 221 155 25 Average 281 | . 11 . . 397 . . . . 169 . . . . 251 483 573 198 388 303 211 213 25 24 Influence Increases 9297 | 5 197 . . 1429 391 171 . 166 602 104 576 7 200 978 1325 317 126 1036 67 843 355 166 236 Destroy 0b10 Robot/C 4800 | . 120 . . 640 340 100 . 120 260 60 380 . 140 400 660 140 40 560 20 500 160 40 120 Destroy 0b10 Robot/NC 360 | 5 5 . . 135 5 10 . . 25 . . 5 . 45 25 10 . 25 . 40 15 5 5 Destroy Leader 862 | . 32 . . 182 10 . . 20 52 20 40 . 30 104 74 . . 112 10 74 50 10 42 Allied During Kill 1220 | . . . . 103 21 61 . 26 36 24 126 2 30 93 414 150 40 94 . . . . . Trap Triggered on 0b10 20 | . . . . 10 . . . . . . . . . . . . . . . . . 10 . Successful Hack 267 | . 24 . . 43 . . . . 20 . . . . 24 . 9 . 14 21 58 16 14 24 Disable Machine 660 | . . . . 120 . . . . 90 . . . . 180 15 . 30 105 . 60 . 60 . Destroy Structure 808 | . 1 . . 196 . . . . 104 . . . . 132 92 8 16 96 16 6 69 27 45 Partial Spotted 15 | . . . . . . . . . . . . . . . 15 . . . . . . . . Lose Combat Pursuer 285 | . 15 . . . 15 . . . 15 . 30 . . . 30 . . 30 . 105 45 . . Influence Decreases 9220 | 5 164 33 . 548 1013 430 . 166 287 371 452 179 200 432 905 806 447 424 622 662 473 399 202 Entered New Map 2559 | . . 17 . . 327 50 . . . 117 10 172 . . 279 426 287 102 366 94 173 121 18 Time Decay 5773 | 5 164 6 . 548 686 380 . 126 287 254 422 7 140 302 556 310 60 262 246 431 270 133 178 Lost Part 176 | . . 10 . . . . . . . . . . . 50 10 10 . 20 10 30 30 . 6 Lost Ally 460 | . . . . . . . . 40 . . 20 . 60 80 60 60 100 40 . . . . . Purge Threat 252 | . . . . . . . . . . . . . . . . . . . . 107 . 145 . Squads Dispatched 62 | . 1 . . 18 . . . . 1 . . . . 6 1 . . 12 5 8 2 2 6 Investigation 14 | . . . . 9 . . . . . . . . . 2 . . . . 2 . . . 1 Extermination 15 | . . . . 4 . . . . 1 . . . . 2 . . . 1 . 2 2 2 1 Reinforcement 20 | . 1 . . 4 . . . . . . . . . 1 1 . . 6 3 4 . . . Assault 4 | . . . . 1 . . . . . . . . . 1 . . . 1 . 1 . . . Garrison 9 | . . . . . . . . . . . . . . . . . . 4 . 1 . . 4 Intercept . | . . . . . . . . . . . . . . . . . . . . . . . . Searches Triggered . | . . . . . . . . . . . . . . . . . . . . . . . . Data Miner Redirects 3 | . . . . . . . . . . . . . . 1 . . . 1 . . . . 1 Construction Impeded 5 | . . . . 3 . . . . . . . . . . 1 . . 1 . . . . . Haulers Reinforced 4 | . . . . . . . . . . . . . . . . . . 3 1 . . . . Active Scanning Responses . | . . . . . . . . . . . . . . . . . . . . . . . . Cargo Convoy Interrupts . | . . . . . . . . . . . . . . . . . . . . . . . . Stealth | -11 -10 -10 -9 -6 -6 -6 -6 -5 -5 -5 -5 -5 -4 -4 -4 -4 -4 -4 -3 -3 -2 -2 -1 --------- Run | Yrd Mat Sub Scr Fac Low Low Dat Pro Fac Upp Upp Zhi Pro Fac Ext Cet Arc Hub Res Tes Res Qua Acc Distress Signals 16 | . 1 . . 1 . . . . . . . . . 2 1 2 . 2 3 3 . . 1 Communications Jammed 46 | . . . . . . . . . . . . . . . . . . 8 . 38 . . . Distress Signals 45 | . . . . . . . . . . . . . . . . . . 7 . 38 . . . Times Spotted 319 | . 10 6 13 31 27 6 . 6 16 2 19 . 4 31 38 10 . 28 6 34 11 3 18 Peak Tracking Total 11 | . 3 2 4 4 11 5 . 2 7 1 7 . 2 5 7 5 . 5 1 8 5 1 11 Tactical Retreats 16 | . 1 . 1 . 1 . . . 1 . 1 . . . 2 . . 2 . 5 2 . . Traps | -11 -10 -10 -9 -6 -6 -6 -6 -5 -5 -5 -5 -5 -4 -4 -4 -4 -4 -4 -3 -3 -2 -2 -1 ------- Run | Yrd Mat Sub Scr Fac Low Low Dat Pro Fac Upp Upp Zhi Pro Fac Ext Cet Arc Hub Res Tes Res Qua Acc Traps Triggered 16 | . . . . 2 . . . . . . . . . 7 3 . . 3 . . 1 . . Indirectly . | . . . . . . . . . . . . . . . . . . . . . . . . Trap Hack Attempts . | . . . . . . . . . . . . . . . . . . . . . . . . Triggered . | . . . . . . . . . . . . . . . . . . . . . . . . Disarmed . | . . . . . . . . . . . . . . . . . . . . . . . . Reprogrammed 4 | . . . . . . . . . 4 . . . . . . . . . . . . . . Reused 2 | . . . . 1 . . . . . . . . . . . . . . . . . 1 . Traps Extracted . | . . . . . . . . . . . . . . . . . . . . . . . . Installed 2 | . . . . 1 . . . . . . . . . . . . . . . . . 1 . Triggered 2 | . . . . 1 . . . . . . . . . . . . . . . . . 1 . Most Traps Carried 7 | . . . 2 1 . 7 6 6 6 6 6 5 5 5 3 3 3 3 3 3 3 3 2 Machines | -11 -10 -10 -9 -6 -6 -6 -6 -5 -5 -5 -5 -5 -4 -4 -4 -4 -4 -4 -3 -3 -2 -2 -1 ---------- Run | Yrd Mat Sub Scr Fac Low Low Dat Pro Fac Upp Upp Zhi Pro Fac Ext Cet Arc Hub Res Tes Res Qua Acc Machines Disabled 60 | . . . 7 8 5 . . . 6 . . 3 . 12 2 . 2 7 . 4 . 4 . Max in Single Turn 2 | . . . 2 1 2 . . . 1 . . 1 . 2 1 . 1 1 . 1 . 1 . Garrison Access 1 | . . . . . . . . . . . . . . . . . . . . 1 . . . Network Hub 1 | . . . . . . . . . . . . . . . . . . 1 . . . . . Machines Repaired . | . . . . . . . . . . . . . . . . . . . . . . . . Machines Dismantled 1 | . . . . . . . . . . . . . . . . . . 1 . . . . . Machines Sabotaged . | . . . . . . . . . . . . . . . . . . . . . . . . Overloaded Fab Kills . | . . . . . . . . . . . . . . . . . . . . . . . . Hacking | -11 -10 -10 -9 -6 -6 -6 -6 -5 -5 -5 -5 -5 -4 -4 -4 -4 -4 -4 -3 -3 -2 -2 -1 --------- Run | Yrd Mat Sub Scr Fac Low Low Dat Pro Fac Upp Upp Zhi Pro Fac Ext Cet Arc Hub Res Tes Res Qua Acc Machines Accessed 70 | . 5 . 2 15 1 3 3 . 4 . . 4 . 7 4 1 1 3 4 6 2 2 3 Terminals 27 | . 3 . . 3 1 . . . 2 . . . . 4 4 1 . 2 1 3 1 1 1 Fabricators 6 | . . . . 4 . . . . 1 . . . . . . . . . . . 1 . . Repair Stations 1 | . . . . 1 . . . . . . . . . . . . . . . . . . . Recycling Units 11 | . 2 . . 6 . . . . . . . . . 2 . . . . 1 . . . . Scanalyzers 7 | . . . . . . . . . 1 . . . . 1 . . . . 2 2 . 1 . Garrison Access 5 | . . . . 1 . . . . . . . . . . . . . 1 . 1 . . 2 Total Hacks 222 | . 17 . 5 23 4 9 29 . 11 . . 17 . 14 5 2 25 5 9 24 7 6 10 Successful 148 | . 9 . 5 11 4 9 29 . 9 . . 17 . 3 1 1 25 1 2 16 3 2 1 Failed 73 | . 7 . . 12 . . . . 2 . . . . 11 4 1 . 4 7 8 4 4 9 Catastrophic 21 | . . . . 5 . . . . 1 . . . . 2 3 . . . 2 2 2 2 2 Database Lockouts 1 | . 1 . . . . . . . . . . . . . . . . . . . . . . Manual 48 | . 7 . . 14 . . . . 5 . . . . 7 2 1 . . . 8 2 2 . Terminals 70 | . 13 . . 5 4 . . . 6 . . . . 7 5 2 . 3 2 12 3 4 4 Fabricators 14 | . . . . 7 . . . . 3 . . . . . . . . . . . 4 . . Repair Stations 1 | . . . . 1 . . . . . . . . . . . . . . . . . . . Recycling Units 18 | . 4 . . 9 . . . . . . . . . 4 . . . . 1 . . . . Scanalyzers 23 | . . . . . . . . . 2 . . . . 3 . . . . 6 10 . 2 . Garrison Access 11 | . . . . 1 . . . . . . . . . . . . . 2 . 2 . . 6 Terminal Hacks 111 | . 6 . 5 . 4 9 29 . 3 . . 17 . 1 . 1 25 1 1 6 1 1 1 Record 51 | . . . 4 . 4 7 6 . . . . 5 . . . . 25 . . . . . . Part Schematic 17 | . . . . . . . 13 . . . . 4 . . . . . . . . . . . Robot Schematic 7 | . . . . . . . 7 . . . . . . . . . . . . . . . . Robot Analysis 5 | . 1 . . . . . . . . . . 4 . . . . . . . . . . . Prototype ID Bank 8 | . 1 . . . . . 3 . . . . 4 . . . . . . . . . . . Open Door 5 | . . . . . . 2 . . . . . . . 1 . 1 . . . . . . 1 Branch Access Points 2 | . . . . . . . . . 1 . . . . . . . . . . . 1 . . Unreport Threat 2 | . . . . . . . . . . . . . . . . . . . . 1 . 1 . Locate Traps 3 | . . . . . . . . . 1 . . . . . . . . 1 . 1 . . . Reprogram Traps 1 | . . . . . . . . . 1 . . . . . . . . . . . . . . Recall Reinforcements 1 | . . . . . . . . . . . . . . . . . . . . 1 . . . Registered Components 1 | . 1 . . . . . . . . . . . . . . . . . . . . . . Zone Layout 5 | . 3 . . . . . . . . . . . . . . . . . 1 1 . . . Proto ID Catalog 1 | . . . 1 . . . . . . . . . . . . . . . . . . . . Protovariant Controls 2 | . . . . . . . . . . . . . . . . . . . . 2 . . . Fabricator Hacks 6 | . . . . 2 . . . . 2 . . . . . . . . . . . 2 . . Network Status 1 | . . . . 1 . . . . . . . . . . . . . . . . . . . Load Schematic 2 | . . . . . . . . . 1 . . . . . . . . . . . 1 . . Build 3 | . . . . 1 . . . . 1 . . . . . . . . . . . 1 . . Repair Station Hacks . | . . . . . . . . . . . . . . . . . . . . . . . . Recycling Unit Hacks 2 | . 2 . . . . . . . . . . . . . . . . . . . . . . Retrieve Components 2 | . 2 . . . . . . . . . . . . . . . . . . . . . . Scanalyzer 10 | . . . . . . . . . 2 . . . . . . . . . 1 7 . . . Insert Component 1 | . . . . . . . . . 1 . . . . . . . . . . . . . . Retrieve Study 9 | . . . . . . . . . 1 . . . . . . . . . 1 7 . . . Garrison Access Hacks 1 | . . . . . . . . . . . . . . . . . . . . 1 . . . Seal Access 1 | . . . . . . . . . . . . . . . . . . . . 1 . . . Unauthorized Hacks 18 | . 1 . . 9 . . . . 2 . . . . 2 1 . . . . 2 . 1 . Terminals 6 | . 1 . . . . . . . 2 . . . . 1 1 . . . . 1 . . . Assimilate 1 | . . . . . . . . . 1 . . . . . . . . . . . . . . Botnet 5 | . 1 . . . . . . . 1 . . . . 1 1 . . . . 1 . . . Fabricators 2 | . . . . 2 . . . . . . . . . . . . . . . . . . . Liberate 1 | . . . . 1 . . . . . . . . . . . . . . . . . . . Haulers 1 | . . . . 1 . . . . . . . . . . . . . . . . . . . Repair Stations . | . . . . . . . . . . . . . . . . . . . . . . . . Recycling Units 7 | . . . . 6 . . . . . . . . . 1 . . . . . . . . . Fedlink 6 | . . . . 6 . . . . . . . . . . . . . . . . . . . Scrapoids 1 | . . . . . . . . . . . . . . 1 . . . . . . . . . Scanalyzers 2 | . . . . . . . . . . . . . . . . . . . . 1 . 1 . Researchers 2 | . . . . . . . . . . . . . . . . . . . . 1 . 1 . Garrison Access 1 | . . . . 1 . . . . . . . . . . . . . . . . . . . Decoy 1 | . . . . 1 . . . . . . . . . . . . . . . . . . . Data Cores Recovered 1 | . . . . . . . . . 1 . . . . . . . . . . . . . . Used . | . . . . . . . . . . . . . . . . . . . . . . . . Hacking Detections 45 | . 4 . . 9 1 . . . 4 . . . . 5 4 . . 3 3 5 2 2 3 Full Trace Events 5 | . . . . 2 . . . . . . . . . 1 . . . . 1 . . . 1 Feedback Events . | . . . . . . . . . . . . . . . . . . . . . . . . Feedback Blocked . | . . . . . . . . . . . . . . . . . . . . . . . . Robot Schematics Acquired 12 | . . . . . . . 7 . . . . . . . . . . . . 5 . . . Robots Built 2 | . . . . . . . . . 2 . . . . . . . . . . . . . . Authchips 1 | . . . . . . . . . 1 . . . . . . . . . . . . . . Time 50 | . . . . . . . . . 50 . . . . . . . . . . . . . . Total Robot Build Rating 10 | . . . . . . . . . 10 . . . . . . . . . . . . . . Part Schematics Acquired 30 | . . . . . . . 13 . . . . 4 . . . . . . . 13 . . . Parts Built 3 | . . . . 2 . . . . . . . . . . . . . . . . 1 . . Authchips 1 | . . . . . . . . . . . . . . . . . . . . . 1 . . Time 109 | . . . . 53 . . . . . . . . . . . . . . . . 56 . . Total Part Build Rating 18 | . . . . 12 . . . . . . . . . . . . . . . . 6 . . Part Studies Acquired 9 | . . . . . . . . . 1 . . . . . . . . . 1 7 . . . Parts Repaired . | . . . . . . . . . . . . . . . . . . . . . . . . Time . | . . . . . . . . . . . . . . . . . . . . . . . . Parts Recycled . | . . . . . . . . . . . . . . . . . . . . . . . . Recycled Matter . | . . . . . . . . . . . . . . . . . . . . . . . . Retrieved Matter . | . . . . . . . . . . . . . . . . . . . . . . . . Retrieved Components 6 | . 6 . . . . . . . . . . . . . . . . . . . . . . Parts Scanalyzed . | . . . . . . . . . . . . . . . . . . . . . . . . Part Schematics Acquired . | . . . . . . . . . . . . . . . . . . . . . . . . Parts Damaged . | . . . . . . . . . . . . . . . . . . . . . . . . Bothacking | -11 -10 -10 -9 -6 -6 -6 -6 -5 -5 -5 -5 -5 -4 -4 -4 -4 -4 -4 -3 -3 -2 -2 -1 ------------ Run | Yrd Mat Sub Scr Fac Low Low Dat Pro Fac Upp Upp Zhi Pro Fac Ext Cet Arc Hub Res Tes Res Qua Acc Used RIF Installer . | . . . . . . . . . . . . . . . . . . . . . . . . Robots Hacked 9 | . . . . . . . 1 . . . . . . . 2 4 2 . . . . . . Non-combat . | . . . . . . . . . . . . . . . . . . . . . . . . Combat 9 | . . . . . . . 1 . . . . . . . 2 4 2 . . . . . . Robot Hacks Applied 11 | . . . . . . . 1 . . . . . . . 2 6 2 . . . . . . parse_system 11 | . . . . . . . 1 . . . . . . . 2 6 2 . . . . . . Relay Couplers Released . | . . . . . . . . . . . . . . . . . . . . . . . . Fabnet Peak Effective % . | . . . . . . . . . . . . . . . . . . . . . . . . Robots Rewired 21 | . . . . . . . . . . . 2 . . 2 15 1 . 1 . . . . . Allies Hacked 1 | . . . . . . . . . . . . . . 1 . . . . . . . . . Hacks Repelled . | . . . . . . . . . . . . . . . . . . . . . . . . Allies | -11 -10 -10 -9 -6 -6 -6 -6 -5 -5 -5 -5 -5 -4 -4 -4 -4 -4 -4 -3 -3 -2 -2 -1 -------- Run | Yrd Mat Sub Scr Fac Low Low Dat Pro Fac Upp Upp Zhi Pro Fac Ext Cet Arc Hub Res Tes Res Qua Acc Total Allies 48 | . . . 1 2 5 . . . 2 . 2 . . 7 21 7 . 1 . . . . . Largest Group 20 | . . . 1 3 6 6 3 3 3 3 4 4 4 5 19 20 13 2 . . . . . Highest-Rated Group 1291 | . . . 77 157 310 310 169 169 147 147 166 166 166 235 924 1291 996 202 . . . . . Highest-Rated Ally 159 | . . . 77 78 75 75 75 75 70 65 65 65 65 116 159 159 159 154 . . . . . Total Orders 16 | . . . . . 2 4 . . 2 . 2 . . 2 . 4 . . . . . . . STAY 8 | . . . . . 1 2 . . 1 . 1 . . 1 . 2 . . . . . . . FOLLOW 8 | . . . . . 1 2 . . 1 . 1 . . 1 . 2 . . . . . . . Ally Attacks 434 | . . . 12 67 31 32 . 19 18 9 20 . 9 54 63 40 18 42 . . . . . Total Damage 20502 | . . . 377 4892 1464 943 . 404 1562 283 1049 . 320 2334 1843 1222 532 3277 . . . . . Kills 144 | . . . 5 36 9 6 . 3 11 2 4 . 2 20 12 6 2 26 . . . . . Allies Corrupted 2 | . . . . . . . . . . . . . . 1 . . . 1 . . . . . Allies Melted 8 | . . . 7 . . 1 . . . . . . . . . . . . . . . . . Intel | -11 -10 -10 -9 -6 -6 -6 -6 -5 -5 -5 -5 -5 -4 -4 -4 -4 -4 -4 -3 -3 -2 -2 -1 ------- Run | Yrd Mat Sub Scr Fac Low Low Dat Pro Fac Upp Upp Zhi Pro Fac Ext Cet Arc Hub Res Tes Res Qua Acc Active Infowar (turns) 10586 | . . 83 . 1032 2142 1228 . 612 152 405 743 . 461 244 17 . . 441 534 1019 590 489 394 Sensors 7688 | . . . . 85 2142 1228 . 612 152 405 676 . 461 244 . . . . 189 427 389 487 191 Terrain 1205 | . . . . . . . . . . . . . . . . . . . . . 325 487 393 Seismic 83 | . . 83 . . . . . . . . . . . . . . . . . . . . . T.N.C. 947 | . . . . 947 . . . . . . . . . . . . . . . . . . . Jamming 2595 | . . . . . . . . . . . 67 . . . 17 . . 441 516 1019 535 . . Robot Analysis Total 5 | . 1 . . . . . . . . . . 4 . . . . . . . . . . . Derelict Logs Recovered 15 | . . 1 4 . 2 2 . 1 . 2 . . 3 . . . . . . . . . . Drone Launches . | . . . . . . . . . . . . . . . . . . . . . . . . Drone Recoveries . | . . . . . . . . . . . . . . . . . . . . . . . . Exploration | -11 -10 -10 -9 -6 -6 -6 -6 -5 -5 -5 -5 -5 -4 -4 -4 -4 -4 -4 -3 -3 -2 -2 -1 ------------- Run | Yrd Mat Sub Scr Fac Low Low Dat Pro Fac Upp Upp Zhi Pro Fac Ext Cet Arc Hub Res Tes Res Qua Acc Turns Passed 25517 | 122 1123 1616 4867 1850 2880 1858 124 749 711 558 1021 265 512 1021 1634 683 125 568 534 1161 590 489 456 Spaces Moved 14553 | 66 412 684 2921 1207 1657 1132 93 531 421 405 649 167 362 570 774 364 51 309 349 594 311 303 221 Core 2 | 2 . . . . . . . . . . . . . . . . . . . . . . . Treads 600 | 64 412 115 . . . . . . . . . . . . . . . . . . . . 9 Legs 5629 | . . 516 1529 1108 1657 819 . . . . . . . . . . . . . . . . . Wheels 8322 | . . 53 1392 99 . 313 93 531 421 405 649 167 362 570 774 364 51 309 349 594 311 303 212 Hover . | . . . . . . . . . . . . . . . . . . . . . . . . Flight . | . . . . . . . . . . . . . . . . . . . . . . . . Fastest Speed 50 | 50 160 115 115 96 120 90 130 130 130 130 130 130 130 130 130 130 140 130 130 130 130 130 130 Average Speed 137 | 156 160 141 143 120 146 130 130 130 130 130 130 130 130 137 134 139 140 137 130 133 137 137 157 Slowest Speed 255 | 160 160 160 200 130 182 182 130 130 130 130 130 190 130 140 140 140 140 140 140 140 210 140 255 Overloaded Moves 5 | . . . . 5 . . . . . . . . . . . . . . . . . . . Propulsion Burnouts . | . . . . . . . . . . . . . . . . . . . . . . . . Robots Hopped . | . . . . . . . . . . . . . . . . . . . . . . . . Potential Cave-ins 16 | . . 5 . . . . . . . . 9 . . . . . . 2 . . . . . Cave-ins Triggered 2 | . . 1 . . . . . . . . . . . . . . . 1 . . . . . Teleports 1 | . . . . . . . . . . . . . . . . . . . . . . . 1 Exploration Rate (%) 47 | 4 43 18 87 29 96 81 74 59 10 60 63 60 59 23 83 69 67 37 9 54 12 35 8 Regions Visited 23 Branch Regions 16 Pre-discovered Areas 15 | . . 2 1 1 1 3 1 . . 1 . 3 2 . . . . . . . . . . Known Exits Taken 19 | . . . . 1 1 1 1 1 1 1 1 1 1 1 1 1 1 1 1 1 1 1 . Unknown Exits Taken 4 | 1 1 1 1 . . . . . . . . . . . . . . . . . . . . Scrap Searched 27 | . . 1 7 . 10 3 . 2 . 1 2 . 1 . . . . . . . . . . Spaces Dug 152 | . . 7 4 9 27 3 . . . . 36 . 2 9 7 . 8 5 7 1 8 9 10 Terrain Destroyed 381 | . . 24 11 13 30 18 . 9 11 2 66 . 9 38 61 . 8 8 9 4 32 10 18 Melee 5 | . . . . . 4 . . . . . . . . . 1 . . . . . . . . Projectile 267 | . . 24 6 13 3 18 . 9 5 2 27 . 9 14 60 . 8 8 9 4 20 10 18 AOE 109 | . . . 5 . 23 . . . 6 . 39 . . 24 . . . . . . 12 . . Terrain Rammed . | . . . . . . . . . . . . . . . . . . . . . . . . Walls Destroyed . | . . . . . . . . . . . . . . . . . . . . . . . . Machines Disabled . | . . . . . . . . . . . . . . . . . . . . . . . . Actions | -11 -10 -10 -9 -6 -6 -6 -6 -5 -5 -5 -5 -5 -4 -4 -4 -4 -4 -4 -3 -3 -2 -2 -1 --------- Run | Yrd Mat Sub Scr Fac Low Low Dat Pro Fac Upp Upp Zhi Pro Fac Ext Cet Arc Hub Res Tes Res Qua Acc Total 19093 | 80 822 1207 3599 1533 2064 1477 95 570 565 431 773 206 384 735 1274 526 86 411 409 805 410 351 280 Wait 2836 | 1 365 379 520 200 324 209 . 23 104 21 42 8 4 59 259 105 18 42 32 60 37 16 8 Move 14527 | 65 411 682 2920 1206 1656 1131 92 530 420 404 648 166 361 569 773 363 50 307 348 593 310 302 220 Hop . | . . . . . . . . . . . . . . . . . . . . . . . . Pick Up 232 | 7 7 14 52 15 10 48 . . 5 . 2 4 1 11 14 11 . 4 7 7 5 4 4 Fast Attach 84 | 6 1 1 7 13 4 6 . 2 3 . . 6 . 3 8 2 . 1 1 12 3 2 3 Attach 70 | . . 9 6 3 8 4 . . 4 . . 1 . 6 6 . . 2 3 6 4 2 6 Detach 44 | . . 1 6 3 4 5 . 1 2 . 1 . . 1 7 1 . . 1 9 1 1 . Swap 176 | . 2 18 8 5 7 7 2 4 6 2 21 2 4 8 12 3 2 3 7 25 19 2 7 Drop 215 | . 7 10 55 16 13 23 . 1 4 . 2 9 2 13 15 15 . 1 . 16 2 4 7 Fire 778 | 1 28 92 25 67 29 43 . 9 17 4 41 10 12 65 112 25 16 31 10 70 29 17 25 Melee 19 | . . . . . 9 1 1 . . . . . . . 1 . . . . 7 . . . Ram . | . . . . . . . . . . . . . . . . . . . . . . . . Kick 4 | . . . . 4 . . . . . . . . . . . . . . . . . . . Crush 1 | . 1 . . . . . . . . . . . . . . . . . . . . . . Escape Stasis 34 | . . 1 . . . . . . . . . . . . 16 . . 17 . . . . . Rewire 68 | . . . . . . . . . . . 16 . . . 51 1 . . . . . . . Trap 2 | . . . . 1 . . . . . . . . . . . . . . . . . 1 . Miscellaneous 3 | . . . . . . . . . . . . . . . . . . 3 . . . . . Route ------- -11/Scrapyard -10/Materials (discovered 3 exits: [*Mat] / [*Min] / [*Sub]) -10/Subcaves (discovered 2 exits: [*Mat] / *Scr) -9/Scraptown (discovered 2 exits: *Fac x2) -6/Factory (discovered 3 exits: *Fac x2 / *Low) -6/Lower Caves -6/Lower Caves -6/Data Miner -5/Proximity Caves -5/Factory (discovered 3 exits: Fac / *Upp x2) -5/Upper Caves -5/Upper Caves -5/Zhirov -4/Proximity Caves -4/Factory (discovered 2 exits: [*Upp] / *Ext) -4/Extension (discovered 2 exits: *Res / *Cet) -4/Cetus (discovered 2 exits: *Res / *Arc) -4/Archives -4/Hub_04(d) -3/Research (discovered 3 exits: Res / Arm / *Tes) -3/Testing -2/Research (discovered 2 exits: *Qua x2) -2/Quarantine -1/Access To Epsilon Eridani History --------- Turn | Location | Event 13 | -11/Scrapyard | Discovered new exit (range 16) 123 | -11/Scrapyard | Entered Materials 141 | -10/Materials | Central database locked down 235 | -10/Materials | Discovered new exit (range 7) 310 | -10/Materials | Build established: Mutant 799 | -10/Materials | Discovered new exit (range 11) 1129 | -10/Materials | Discovered new exit (range 8) 1246 | -10/Materials | Entered Subcaves 1247 | -10/Subcaves | Ambushed by Subdwellers from Twisted Machinery 1247 | -10/Subcaves | Approached by a straggling Scientist 1298 | -10/Subcaves | Learned location of Zion (-7) 1304 | -10/Subcaves | Lost 3 parts (1n2w) 1323 | -10/Subcaves | Discovered new exit (range 7) 1630 | -10/Subcaves | Core integrity fell below 50% 1681 | -10/Subcaves | Lost 4 parts (2n2w) 1709 | -10/Subcaves | Met a Zionite searching for "candidates" 1939 | -10/Subcaves | Build established: Scavenger-Mutant 2457 | -10/Subcaves | Ambushed by Subdweller buried in earth 2591 | -10/Subcaves | Crushed by falling debris 2736 | -10/Subcaves | Scientist uncovered a shortcut to Scraptown 2862 | -10/Subcaves | Entered Scraptown 2867 | -9/Scraptown | System corruption cleaned by C-Scrubber 3081 | -9/Scraptown | Discovered new exit (range 11) 3155 | -9/Scraptown | Scanned Subdweller tech in exchange for log data 3158 | -9/Scraptown | Learned 12 Research zone layouts 3161 | -9/Scraptown | Learned Factory stockpile data 3234 | -9/Scraptown | Visited Shadow of the Wyrm 3263 | -9/Scraptown | Learned location of Extension (-4) 3307 | -9/Scraptown | Visited Awakened 3329 | -9/Scraptown | Visited TADAMA 3375 | -9/Scraptown | Visited Supply Room 3406 | -9/Scraptown | Visited CPS Storage 3629 | -9/Scraptown | Visited UFD Registry 3629 | -9/Scraptown | Registered with UFD as "Softbay" 3675 | -9/Scraptown | Build established: Mutant 3741 | -9/Scraptown | Guru changed UFD alias to "Hammerfunk" 3895 | -9/Scraptown | Visited DA-N13 Charitable Foundation 3901 | -9/Scraptown | Found DCF Scrap (27 items) 3934 | -9/Scraptown | Visited Curators Association 3989 | -9/Scraptown | Visited Botcube Research 4018 | -9/Scraptown | Visited Abandonware Association 4041 | -9/Scraptown | Learned abandonware demo "TRNCOAT.EXE" 4041 | -9/Scraptown | Learned abandonware demo "KABOOM.EXE" 4080 | -9/Scraptown | Visited Scrap Suit Storage 4112 | -9/Scraptown | Visited Scrapoid Pod Storage 4131 | -9/Scraptown | Visited Science Guys 4135 | -9/Scraptown | Build established: Scavenger-Mutant 4174 | -9/Scraptown | Visited Observation Area 4478 | -9/Scraptown | Found Lrg. Botcube 4559 | -9/Scraptown | Build established: Mutant 5975 | -9/Scraptown | Found Scrap Suit 6252 | -9/Scraptown | Lrg. Botcube activated 6288 | -9/Scraptown | Lrg. Botcube completed mutation into legged form, armed with 1 gun, 2 cannons, 1 launcher. 6602 | -9/Scraptown | Attached CPS modules to *MU-TNT. 6993 | -9/Scraptown | Found Scrapoid Pod 7024 | -9/Scraptown | Visited Junk Cannon Lab 7031 | -9/Scraptown | Found Prototype Special Weapon 7031 | -9/Scraptown | Identified Junk Cannon 7076 | -9/Scraptown | Found Scrap Suit 7114 | -9/Scraptown | Met Optimus 7114 | -9/Scraptown | Accepted into 0bPrime 7514 | -9/Scraptown | Civil war broke out across Scraptown 7520 | -9/Scraptown | Found Personal Teleporter v0.10 7573 | -9/Scraptown | Core integrity fell below 20% 7589 | -9/Scraptown | Lost 5 allies 7618 | -9/Scraptown | Found Vmp. Humpback 7647 | -9/Scraptown | Found Potential Leg 7715 | -9/Scraptown | Discovered new exit (range 5) 7729 | -9/Scraptown | Entered Factory 7729 | -6/Factory | Accompanied by 1 ally 7729 | -6/Factory | Evolved 8 slots: Power x1, Propulsion x2, Utility x5 7733 | -6/Factory | Lost 10 allies 8009 | -6/Factory | Loaded intel: 8 recycling unit locations 8154 | -6/Factory | Learned location of Protoforge (-2) 8984 | -6/Factory | Spotted B-75 Beast 9001 | -6/Factory | Destroyed B-75 Beast 9006 | -6/Factory | Discovered new exit (range 15) 9032 | -6/Factory | Identified exit to Factory 9283 | -6/Factory | Found Quantum Capacitor 9291 | -6/Factory | Discovered exit to Factory (range 15) 9476 | -6/Factory | Fabricated Adv. Field Recycling Unit? 9479 | -6/Factory | First assault squad dispatched 9554 | -6/Factory | Discovered new exit (range 16) 9578 | -6/Factory | Identified exit to Lower Caves 9579 | -6/Factory | Entered Lower Caves 9579 | -6/Lower Caves | Accompanied by 3 allies 10217 | -6/Lower Caves | Attacked by a delusional Derelict stockpiling parts 10329 | -6/Lower Caves | Found DCF Scrap (15 items) 10532 | -6/Lower Caves | Attacked by a faux Warlord 10610 | -6/Lower Caves | Discovered new exit (range 15) 10710 | -6/Lower Caves | Identified exit to Lower Caves 12000 | -6/Lower Caves | Learned location of 1 exit from Proximity Caves 12001 | -6/Lower Caves | Attracted the attention of an 0b10 base 12021 | -6/Lower Caves | Scrapoid Pod released 06L05-D (x5) 12035 | -6/Lower Caves | Destroyed 9 combat bots 12459 | -6/Lower Caves | Entered another Lower Caves area 12459 | -6/Lower Caves | Accompanied by 6 allies 12536 | -6/Lower Caves | Learned Factory emergency access door positions 12620 | -6/Lower Caves | Found Alien Artifact 12620 | -6/Lower Caves | Identified Core Expander 12620 | -6/Lower Caves | Installed Core Expander, added new Weapon slot 12916 | -6/Lower Caves | Build established: Gunner 13263 | -6/Lower Caves | Build established: Mutant 13331 | -6/Lower Caves | Found Scrap Suit 13365 | -6/Lower Caves | Found Imp. Powered Armor 13529 | -6/Lower Caves | Attached CPS modules to 06L05-D. 13531 | -6/Lower Caves | Attached CPS modules to 06L03-D. 13642 | -6/Lower Caves | Entered an active Warlord outpost 13672 | -6/Lower Caves | Learned location of Armory (-3) 13672 | -6/Lower Caves | Learned location of 1 exit from Research 13672 | -6/Lower Caves | Learned Armory trap positions 13672 | -6/Lower Caves | Learned Armory emergency access door positions 13672 | -6/Lower Caves | Learned Armory security intel 13710 | -6/Lower Caves | Destroyed 2H-KGM(g) 13769 | -6/Lower Caves | Murdered 3 allies 13857 | -6/Lower Caves | Found Scrap Suit 13864 | -6/Lower Caves | Found Scrap Suit 14101 | -6/Lower Caves | Build established: Hauler-Scrapper 14218 | -6/Lower Caves | Discovered new exit (range 8) 14227 | -6/Lower Caves | Identified exit to Data Miner 14317 | -6/Lower Caves | Entered Data Miner 14317 | -6/Data Miner | Accompanied by 3 allies 14317 | -6/Data Miner | Discovered new exit (range 6) 14344 | -6/Data Miner | Met Data Miner 14386 | -6/Data Miner | Learned location of Section 7 (-2) 14386 | -6/Data Miner | Acquired the access code to Warlord's prototype stash 14403 | -6/Data Miner | Received God Mode back door access code from Data Miner 14440 | -6/Data Miner | Identified exit to Proximity Caves 14441 | -6/Data Miner | Entered Proximity Caves 14441 | -5/Proximity Caves | Accompanied by 3 allies 14488 | -5/Proximity Caves | Found Scrap Suit 14804 | -5/Proximity Caves | Learned 4 Factory zone layouts 15190 | -5/Proximity Caves | Entered Factory 15190 | -5/Factory | Accompanied by 1 ally 15190 | -5/Factory | Evolved 2 slots: Utility x2 15191 | -5/Factory | Identified exit to Upper Caves 15192 | -5/Factory | Identified exit to Factory 15858 | -5/Factory | Fabricated H-66 Slayer? 15901 | -5/Factory | Entered Upper Caves 15901 | -5/Upper Caves | Accompanied by 3 allies 16237 | -5/Upper Caves | Identified exit to Upper Caves 16459 | -5/Upper Caves | Entered another Upper Caves area 16459 | -5/Upper Caves | Accompanied by 3 allies 16574 | -5/Upper Caves | Destroyed 8 combat bots 16684 | -5/Upper Caves | Attracted the attention of an 0b10 outpost 16881 | -5/Upper Caves | Spotted B-75 Beast 16895 | -5/Upper Caves | Allies destroyed B-75 Beast 17265 | -5/Upper Caves | Found Prototype Special Weapon 17310 | -5/Upper Caves | Identified Mak. Laser Shovel 17452 | -5/Upper Caves | Discovered new exit (range 7) 17458 | -5/Upper Caves | Identified exit to Zhirov 17480 | -5/Upper Caves | Entered Zhirov 17480 | -5/Zhirov | Accompanied by 4 allies 17482 | -5/Zhirov | Discovered new exit (range 3) 17534 | -5/Zhirov | Learned location of Quarantine (-2) 17534 | -5/Zhirov | Learned location of Testing (-3) 17534 | -5/Zhirov | Learned location of Command (-1) 17564 | -5/Zhirov | Found Alien Artifact 17564 | -5/Zhirov | Identified Integrated Dissipator 17564 | -5/Zhirov | Installed Integrated Dissipator, increased core heat dissipation (+20) 17676 | -5/Zhirov | Found Alien Artifact 17735 | -5/Zhirov | Identified exit to Proximity Caves 17745 | -5/Zhirov | Entered Proximity Caves 17745 | -4/Proximity Caves | Accompanied by 4 allies 17902 | -4/Proximity Caves | Found Lrg. Botcube 17907 | -4/Proximity Caves | Lost 3 allies 18032 | -4/Proximity Caves | Spotted B-86 Titan 18047 | -4/Proximity Caves | Destroyed B-86 Titan 18075 | -4/Proximity Caves | Learned 8 Research zone layouts 18200 | -4/Proximity Caves | Discovered exit to Factory (range 14) 18257 | -4/Proximity Caves | Entered Factory 18257 | -4/Factory | Accompanied by 1 ally 18257 | -4/Factory | Evolved 2 slots: Power x1, Utility x1 18258 | -4/Factory | Identified exit to Extension 18500 | -4/Factory | Spotted B-86 Titan 18532 | -4/Factory | Destroyed B-86 Titan 18575 | -4/Factory | Build established: Scavenger-Scrapper 18675 | -4/Factory | Scrapoids reinforcements arrived? 18734 | -4/Factory | Spotted B-86 Titan 18754 | -4/Factory | Rewired B-86 Titan 18757 | -4/Factory | Found Scrap Suit 18766 | -4/Factory | Lost 4 allies 19007 | -4/Factory | First assault squad dispatched 19151 | -4/Factory | Incoming investigation squad redirected 19253 | -4/Factory | Destroyed Titan 7a 19254 | -4/Factory | Discovered new exit (range 15) 19278 | -4/Factory | Entered Extension 19318 | -4/Extension | Build established: Hauler-Scrapper 19635 | -4/Extension | Build established: Scavenger-Scrapper 19753 | -4/Extension | Disrupted transfer network 19859 | -4/Extension | Rescued a captive Derelict 20139 | -4/Extension | Spotted B-86 Titan 20148 | -4/Extension | Spotted B-86 Titan 20163 | -4/Extension | Allies destroyed B-86 Titan 20171 | -4/Extension | Allies destroyed B-86 Titan 20325 | -4/Extension | Rescued a captive Derelict 20326 | -4/Extension | Rescued a captive Derelict 20341 | -4/Extension | Rescued a captive Derelict 20453 | -4/Extension | Rescued A7 20493 | -4/Extension | Rescued a captive Derelict 20572 | -4/Extension | Build established: Commander-Scrapper 20838 | -4/Extension | Discovered new exit (range 10) 20839 | -4/Extension | Discovered new exit (range 6) 20864 | -4/Extension | Identified exit to Cetus 20912 | -4/Extension | Entered Cetus 20912 | -4/Cetus | Accompanied by 17 allies (A7) 20917 | -4/Cetus | Acquired a Cetus Manufacturing Module code from A7 20929 | -4/Cetus | Spotted Cetus Guard 20929 | -4/Cetus | Spotted Cetus Guard 20936 | -4/Cetus | Spotted Cetus Guard 20936 | -4/Cetus | Spotted Cetus Guard 20938 | -4/Cetus | Destroyed Cetus Guard 20946 | -4/Cetus | Destroyed Cetus Guard 20953 | -4/Cetus | Allies destroyed Cetus Guard 20959 | -4/Cetus | Allies destroyed Cetus Guard 21088 | -4/Cetus | Lrg. Botcube activated 21120 | -4/Cetus | Lrg. Botcube completed mutation into treaded form, armed with 4 guns. 21162 | -4/Cetus | Started Cetus Manufacturing Module 21172 | -4/Cetus | Escorted A7 to Cetus Mainframe 21187 | -4/Cetus | Manufactured an Enhanced Grunt 21212 | -4/Cetus | Manufactured an Enhanced Grunt 21221 | -4/Cetus | Discovered new exit (range 16) 21237 | -4/Cetus | Manufactured an Enhanced Grunt 21246 | -4/Cetus | Spotted Cetus Guard 21246 | -4/Cetus | Spotted Cetus Guard 21249 | -4/Cetus | Spotted Cetus Guard 21252 | -4/Cetus | Spotted Cetus Guard 21256 | -4/Cetus | Rewired Cetus Guard 21259 | -4/Cetus | Allies destroyed Cetus Guard 21262 | -4/Cetus | Manufactured an Enhanced Grunt 21262 | -4/Cetus | Destroyed Cetus Guard 21267 | -4/Cetus | Allies destroyed Cetus Guard 21287 | -4/Cetus | Manufactured an Enhanced Grunt 21291 | -4/Cetus | Discovered new exit (range 16) 21299 | -4/Cetus | Met Revision 17 21391 | -4/Cetus | Identified exit to Archives 21595 | -4/Cetus | Entered Archives 21595 | -4/Archives | Accompanied by 13 allies (A7) 21600 | -4/Archives | Received a hacking code to weaken MAIN.C 21659 | -4/Archives | Met Zhirov 21659 | -4/Archives | Discovered new exit (range 15) 21665 | -4/Archives | Reinforcements dispatched to Archives 21677 | -4/Archives | Read partially decrypted archive contents 21698 | -4/Archives | Identified exit to Hub_04(d) 21710 | -4/Archives | Reinforcements dispatched to Archives 21720 | -4/Archives | Entered Hub_04(d) 21720 | -4/Hub_04(d) | Accompanied by 2 allies 21750 | -4/Hub_04(d) | Lost 4 allies 21844 | -4/Hub_04(d) | Garrison activated, responded to threat 21887 | -4/Hub_04(d) | Build established: Scavenger-Scrapper 22028 | -4/Hub_04(d) | Discovered new exit (range 15) 22150 | -4/Hub_04(d) | Garrison activated, responded to threat 22155 | -4/Hub_04(d) | Network Hub disabled 22175 | -4/Hub_04(d) | Crushed by falling debris 22220 | -4/Hub_04(d) | First assault squad dispatched 22233 | -4/Hub_04(d) | Identified exit to Research 22240 | -4/Hub_04(d) | Incoming assault squad redirected 22240 | -4/Hub_04(d) | Found Prototype Device 22243 | -4/Hub_04(d) | Found Prototype Device 22288 | -4/Hub_04(d) | Entered Research 22288 | -3/Research | Evolved 2 slots: Utility x2 22289 | -3/Research | Identified exit to Armory 22290 | -3/Research | Identified exit to Research 22291 | -3/Research | Identified exit to Testing 22296 | -3/Research | Identified Exp. EM Shield 22297 | -3/Research | Identified Exp. Phase Shifter 22488 | -3/Research | Revision forces began assault on 0b10 22600 | -3/Research | Met up with Revision 17++ 22717 | -3/Research | Found Fusion Bomb Launcher 22770 | -3/Research | Build established: Scavenger-Gunner 22822 | -3/Research | Entered Testing 22833 | -3/Testing | Protovariant out of control (PH-9426GPL7B7) 22833 | -3/Testing | Unleashed a protovariant (PH-9426GPL7B7) 22933 | -3/Testing | Found Prototype Device 22933 | -3/Testing | Identified 2N-1CE's Frost Array 23050 | -3/Testing | Found Prototype Processor 23050 | -3/Testing | Identified Spectral Analyzer 23065 | -3/Testing | Scanned by Researcher 23374 | -3/Testing | Discovered exit to Research (range 10) 23406 | -3/Testing | Garrison activated, responded to threat 23655 | -3/Testing | Found Prototype Energy Gun 23655 | -3/Testing | Identified Warp Gun 23731 | -3/Testing | Found Prototype Energy Cannon 23731 | -3/Testing | Identified Potential Cannon 23960 | -3/Testing | Found Prototype Launcher 23961 | -3/Testing | Identified Z-bomb Delivery System 23983 | -3/Testing | Entered Research 23983 | -2/Research | Evolved 2 slots: Utility x2 24439 | -2/Research | Fabricated Prc. Matter Filter (x1) 24503 | -2/Research | Identified exit to Quarantine 24573 | -2/Research | Entered Quarantine 24697 | -2/Quarantine | Cryocooling Duct disabled 24712 | -2/Quarantine | Ambient heat levels rising (+20) 24712 | -2/Quarantine | Non-combat units ordered to evacuate 24755 | -2/Quarantine | Found Alien Artifact 24849 | -2/Quarantine | Found Alien Slashing Weapon 24866 | -2/Quarantine | Build established: Scavenger-Skirmisher 24996 | -2/Quarantine | Discovered new exit (range 24) 25038 | -2/Quarantine | Identified exit to Access 25054 | -2/Quarantine | Found Alien Artifact 25062 | -2/Quarantine | Entered Access 25062 | -1/Access | Evolved 2 slots: Propulsion x2 25149 | -1/Access | Garrison activated, responded to threat 25152 | -1/Access | Identified Hpw. Transdimensional Reconstructor 25152 | -1/Access | Warped through subspace 25153 | -1/Access | Garrison activated, responded to threat 25159 | -1/Access | Incoming investigation squad redirected 25485 | -1/Access | Discovered new exit (range 10) 25516 | -1/Access | Identified exit to Surface 25518 | *** | Escaped! Last Messages --------------- 25428_ Adv. Heat Sink melted. 25428_ Y-72 Warden destroyed. 25435_ W-44 Eye sends out distress signal. 25435_ Ovr. Huge Scrapsphere repairs itself (+9). 25435_ Acquired 60 matter. 25446_ Sml. Battery melted. 25446_ P-80 Master destroyed. 25453_ Acquired 67 matter. 25456_ Acquired 61 matter. 25475_ Ovr. Huge Scrapsphere suddenly begins malfunctioning. 25485_ EXIT=FOUND 25493_ Ovr. Huge Scrapsphere suddenly begins malfunctioning. 25495_ Connecting with Terminal... >>Open(Door) Sealed Barrier opened. 25495_ Dropped Ovr. Huge Scrapsphere. 25506_ The Access Shell folds into the floor. 25516_ EXIT=IDENTIFIED: SURFACE Map ----- +----------------------------------------------------+ | ?????????????"?????# ? ?? ?????????????????????? | | ?????? ? "?????? ?## ????? ???????????????????? | | ?????????"?"?" ???#? ? ? ?? ? ?????????????????? | | #???# ??"""?? ? #??? ?? ? ???? ???????????????? | | #?### ? ? ? ##?? ?? ??? ?#????????????????? | | ?##?# ?? #?####?#????#??? ?? ???????????? | | ####?####??#########??#####?##?##?????????????? | | #?##??# ?####?#???###??? ? ? ????????????? | | ? "" ##??##?#?######?? ? ? ??????????? | | ? ? ?? ?T #####?####??##? ? ? ????????????? | | ?##?### ? ??#?#??#????#?? ? ?? ??? ????????? | | ######??? ######??#####??? ? ? ? ?????????? | | ########### ?#??######?##??# ??"?"?"??????#????? | | ####? #?#?##?#####??#? "???"" ?????????? | | #### #####?#?######## ???""""? ?????????? | | " #### ########?###???? "????? ????????? | | """ #### #?#####?####?#?# """"""?? ??? ???? | | """#### #######?##?###?#??##?###?#??????????? | | " #### ##########?????#??#?#######?????????? | | #### ####### #############?#????##?#?? ??? | | #### """T""" "???? ? ?????????? | | #### """=""" """" ? ? ???# ??? | | #### = ""?" ? ???#?????? | | #### "??? ? ?????????? | | #### "" """"? ? ??? ???? | | ########### @" """?? ? ????? ???? | | ########### ""?" ? ???? ???? | | ########### """"?? ? ??#???#?? | | ########### """"?? ? ??????????? | | ########### """" ??? ? ??? ????? | | ########### ####### ##############?#??????? ????? | | ########### ###############?#?#####?#??#????????? | | ########### ##############?##?####?#?##???? ????? | | ########### #### ? ##?? ????#???????? | | ########### #### ? #??# ? ??????????? | | "" ## #### ?? ? #### ????????????? | | "" ## #### ? ??? #??# ? ??????????? | | """""" ## #### ? ?#?# ?????????? | | """""" ##! "### ? ? ###?????? ????????? | | "" ![#![ ##########+######?#????+##?#???????? | | "" ! "!= [ ? ? ????????????? | | [=#!!= ? ??????????????? | | =#! "##+###############+???????????????? | | ###### ###?? ??? ???????????? | | ###### ? ##?? ???????????????? | | ! ###### ###??? ???????????????? | | ###?## " ? ? ###? ?"???????????????? | | ############### """" ### ?????????????????? | | #######?#######?"""" ? # # ? " ??????????????? | | ########?###### "?""" ? ###?? ????????????????? | +----------------------------------------------------+ Best States ------------- Heat Dissipation 203 Energy Generation 64 Energy Capacity 1055 Matter Stores 300 Matter Capacity 300 Sight Range 16 Robot Scan Range 18 Terrain Scan Range 24 Terrain Scan Density 210 Jamming Range 14 Corruption Block 8 Armor Coverage 675 Resistance: TH 25 Resistance: EM 75 Phase Shifting 20 Evasion (%) 60 Targeting Accuracy 12 Target Analysis 8 Core Analysis 6 Recoil Reduction 6 Matter Filtering 50 Offensive Hacking 14 Authchip Count 1 Item Schematics ----------------- Combat Drone Bay | -6/Data Miner | Free Lgt. Regenerative Plating | -6/Data Miner | Free Cld. Gravmag System | -6/Data Miner | Free Prc. Matter Filter | -6/Data Miner | Free Plasma Sword | -6/Data Miner | Free Adv. Medium Treads | -6/Data Miner | Free Adv. Particle Charger | -6/Data Miner | Free Hvy. Disruptor Cannon | -6/Data Miner | Free Imp. Remote Datajack | -6/Data Miner | Free Adv. Coolant Injector | -6/Data Miner | Free Adv. Focal Shield | -6/Data Miner | Free Particle Reactor | -6/Data Miner | Free Hyp. Railgun | -6/Data Miner | Free Assault Drone Bay | -5/Zhirov | Free Exp. Heat Sink | -5/Zhirov | Free Exp. Optical Array | -5/Zhirov | Free Imp. Arc Thrower | -5/Zhirov | Free Adv. Plasma Rifle | -3/Testing | Archive Hvy. Neutron Cannon | -3/Testing | Archive Prc. Energy Filter | -3/Testing | Archive Nanosword | -3/Testing | Archive Lgt. Antimatter Cannon | -3/Testing | Archive Adv. KE Penetrator | -3/Testing | Archive Imp. Matter Compressor | -3/Testing | Archive Hellfire Missile Launcher | -3/Testing | Archive Exp. Matter Compressor | -3/Testing | Archive Adv. Energy Well | -3/Testing | Archive Adv. Dynamic Insulation System | -3/Testing | Archive Shock Maul | -3/Testing | Archive Hvy. Dispersion Rifle | -3/Testing | Archive Robot Schematics ------------------ G-50 Soldier | -6/Data Miner | Free R-10 Processor | -6/Data Miner | Free A-15 Conveyor | -6/Data Miner | Free H-66 Slayer | -6/Data Miner | Free Y-64 Sentinel | -6/Data Miner | Free B-60 Warrior | -6/Data Miner | Free A-27 Freighter | -6/Data Miner | Free E-15 Imp | -3/Testing | Archive R-06 Scavenger | -3/Testing | Archive W-44 Eye | -3/Testing | Archive M-36 Artificer | -3/Testing | Archive C-55 Analyst | -3/Testing | Archive Fabricated ------------ Adv. Field Recycling Unit | x2 | -6/Factory | Preloaded H-66 Slayer | x2 | -5/Factory | Authchip Prc. Matter Filter | x1 | -2/Research | Authchip Repaired ---------- Nothing Studied --------- Neutrino Core | -5/Factory | Hacked KE Penetrator | -3/Research | Hacked Railgun | -3/Testing | Hacked Quantum Reactor | -3/Testing | Hacked Lgt. Antimatter Reactor | -3/Testing | Hacked Particle Reactor | -3/Testing | Hacked Quantum Rifle | -3/Testing | Hacked Fusion Bomb Launcher | -3/Testing | Hacked Hvy. Gauss Cannon | -3/Testing | Hacked Alien Tech Used ----------------- Core Expander Integrated Dissipator High-powered Transdimensional Reconstructor Achievements -------------- Better Safe Than Exploded IP Theft Uncivil War Challenges ------------ None Game ------ Seed TimingStrikeSlamshotty Manual? 0 Play Time 02:57:07 Cumulative 1996.0 hours Start 2025.10.21 @ 01:13:35 End 2025.10.21 @ 04:18:53 Sessions 1 Manual Loads 0 Difficulty Rogue Special Mode None Game No. 1306 Rogue 1302 Adventurer 4 Explorer 0 Win Type 0 Total 268 Types 201/12/21/10/3/1/4/9/5/2 Lore% 98 Gallery% 96 Achievement% 83 Wizard Run 0 Options --------- Layout 2 ASCII 0 Keyboard 1 Movement Vi Keybinds 0 Fullscreen 0 Font 24/Terminus Map View 59x48 Zoom Use 0% Tactical HUD 1 Map Filters NONE Filters NONE Steam 1 RUN: 5dce06d1-621c-44f2-8832-d5000712e36c